bitfinex/quotes_ETHUSD_20250724
["timestamp","ask_amount","ask_price","bid_price","bid_amount"]
[1753354385142,2.76039649,3622.7,3622.5,0.1384]
[1753354385341,2.76044829,3622.6,3622.5,0.1384]
[1753354385647,2.76044829,3622.6,3622.5,0.5706]
[1753354387252,2.7602959,3622.8,3622.5,0.5706]
[1753354387458,2.76044829,3622.6,3622.5,0.5706]
[1753354387950,2.76044829,3622.6,3622.5,0.1384]
[1753354388658,2.76039668,3622.7,3622.5,0.1384]
[1753354388957,2.76039885,3622.7,3622.5,0.1384]
[1753354389355,2.76039885,3622.7,3622.5,0.5706]
[1753354389858,2.76032851,3622.8,3622.5,0.5706]
[1753354390060,2.76029739,3622.8,3622.5,0.5706]
[1753354390655,2.76037345,3622.7,3622.5,0.5706]
[1753354390858,0.00200001,3622.9,3622.6,1.2224]
[1753354391154,0.00200001,3622.9,3622.7,0.4322]
[1753354391533,0.00200001,3622.9,3622.8,0.1384]
[1753354392275,2.76221972,3622.9,3622.8,0.1384]
[1753354392628,0.00200001,3622.9,3622.8,0.1384]
[1753354392872,0.00200001,3622.9,3622.8,0.5706]
[1753354393535,0.00200001,3622.9,3622.8,0.1384]
[1753354393954,2.76221972,3622.9,3622.8,0.1384]
[1753354394364,0.00200001,3622.9,3622.8,0.1384]
[1753354395075,2.76221972,3622.9,3622.8,0.1384]
[1753354395488,2.76037209,3622.7,3622.6,4.508]
[1753354395775,2.76037209,3622.7,3622.5,4.507]
[1753354395776,2.76044829,3622.6,3622.5,4.507]
[1753354397982,2.76067691,3622.3,3622.2,4.71297326]
[1753354398889,2.7606007,3622.4,3622.2,4.71297326]
[1753354398890,0.1384,3622.6,3622.2,4.71297326]
[1753354399060,0.7675,3622.8,3622.3,0.4322]
[1753354399265,4.50800001,3622.9,3622.6,0.1384]
[1753354399266,2.7604237,3622.7,3622.6,0.1384]
[1753354399466,2.76224092,3622.9,3622.6,0.1384]
[1753354399800,2.76030385,3622.8,3622.6,0.5706]
[1753354400153,0.00200001,3622.9,3622.6,0.1384]
[1753354400349,0.00200001,3622.9,3622.7,0.4322]
[1753354400886,0.00200001,3622.9,3622.8,5.0924]
[1753354401653,0.00200001,3622.9,3622.8,7.8526959]
[1753354402254,0.00200001,3622.9,3622.8,5.0924]
[1753354403148,0.00200001,3622.9,3622.8,7.8526959]
[1753354403380,0.00200001,3622.9,3622.8,5.0924]
[1753354404458,0.00200001,3622.9,3622.8,4.6434]
[1753354404862,0.00200001,3622.9,3622.8,5.0924]
[1753354405388,2.76221972,3622.9,3622.8,4.6414]
[1753354405554,2.7602959,3622.8,3622.2,0.20597326]
[1753354405757,2.76051776,3622.6,3622.3,4.503]
[1753354405955,0.00200001,3622.9,3622.5,0.1384]
[1753354406153,2.76224226,3622.9,3622.5,0.1384]
[1753354406479,2.76224226,3622.9,3622.6,0.449]
[1753354407400,0.00200001,3622.9,3622.6,4.503]
[1753354407599,2.76222024,3622.9,3622.8,0.1384]
[1753354407815,0.00200001,3622.9,3622.8,0.1384]
[1753354408596,2.76221972,3622.9,3622.8,0.1384]
[1753354410500,0.00200001,3622.9,3622.8,0.1384]
[1753354410681,2.76221972,3622.9,3622.8,0.1384]
[1753354410886,2.76221972,3622.9,3622.8,0.5874]
[1753354411773,2.76221972,3622.9,3622.8,0.1384]
[1753354414281,2.76067691,3622.3,3622.2,0.20876661]
[1753354414481,2.76067691,3622.3,3622.2,4.499]
[1753354415428,2.76075313,3622.2,3622.1,0.001]
[1753354415725,2.76075313,3622.2,3622.1,4.499]
[1753354416595,2.76054249,3622.5,3622.1,4.499]
[1753354417127,2.76072995,3622.3,3622.1,4.499]
[1753354417995,2.76067909,3622.3,3622.1,4.499]
[1753354418609,2.76067909,3622.3,3622.1,4.70308218]
[1753354418946,2.76075313,3622.2,3622.1,4.70308218]
[1753354419145,2.76075313,3622.2,3622.1,4.70208218]
[1753354420245,2.76075313,3622.2,3622.1,0.20508218]
[1753354420539,2.76075313,3622.2,3622.1,4.70208218]
[1753354421338,2.76075313,3622.2,3622.1,0.001]
[1753354421503,10.96901939,3622.2,3622.1,0.001]
[1753354421835,11.79591939,3622.2,3622.1,0.001]
[1753354424400,2.76121051,3621.6,3621.4,0.001]
[1753354424602,2.76128675,3621.5,3621.4,0.001]
[1753354424840,4.494,3621.9,3621.4,0.45]
[1753354425041,2.76128675,3621.5,3621.4,0.001]
[1753354426607,0.8269,3622.2,3621.4,1.2437]
[1753354426817,2.76114627,3621.7,3621.4,1.2437]
[1753354427146,0.02783604,3621.8,3621.4,0.001]
[1753354427308,2.76128675,3621.5,3621.4,0.001]
[1753354428507,3.54808675,3621.5,3621.4,0.001]
[1753354428933,3.57592279,3621.5,3621.4,0.001]
[1753354429143,3.54808675,3621.5,3621.4,0.001]
[1753354429648,3.57592279,3621.5,3621.4,0.001]
[1753354429849,3.54808675,3621.5,3621.4,0.001]
[1753354431425,3.68648675,3621.5,3621.4,0.001]
[1753354433467,8.02877786,3621.8,3621.4,0.4747]
[1753354433683,2.76128675,3621.5,3621.4,0.4747]
[1753354434909,2.76122665,3621.6,3621.4,0.4747]
[1753354435074,2.76128675,3621.5,3621.4,0.4747]
[1753354436096,5.4061,3621.8,3621.4,0.4747]
[1753354436097,0.1384,3621.8,3621.4,0.4747]
[1753354436259,2.76110679,3621.8,3621.5,0.4737]
[1753354436461,2.76110679,3621.8,3621.6,0.4737]
[1753354436657,4.6284,3621.9,3621.6,0.4737]
[1753354436658,7.38940554,3621.9,3621.6,0.4737]
[1753354436863,4.489,3622.1,3621.7,0.4737]
[1753354437071,2.76095074,3622.0,3621.8,0.6121]
[1753354437277,2.76086278,3622.1,3621.8,0.1384]
[1753354437473,2.76086278,3622.1,3621.9,0.4737]
[1753354437800,0.1384,3622.7,3622.0,0.6121]
[1753354438116,2.76222472,3622.9,3622.1,0.4737]
[1753354438259,0.00200001,3622.9,3622.5,0.7845]
[1753354438461,0.00200001,3622.9,3622.6,0.6121]
[1753354438894,0.00200001,3622.9,3622.7,0.4737]
[1753354439284,2.76222292,3622.9,3622.6,0.1384]
[1753354439603,2.7602959,3622.8,3622.6,0.1384]
[1753354439896,2.7602959,3622.8,3622.6,0.6121]
[1753354440698,2.76037209,3622.7,3622.6,0.1384]
[1753354440998,2.76037209,3622.7,3622.1,4.487]
[1753354440999,2.76058899,3622.5,3622.1,4.487]
[1753354441212,2.76060312,3622.4,3622.1,0.1384]
[1753354441377,2.76060312,3622.4,3622.2,0.4737]
[1753354441697,2.76075313,3622.2,3622.1,0.1384]
[1753354441897,0.02783604,3622.3,3621.9,4.486]
[1753354441898,7.93717551,3622.3,3621.9,4.486]
[1753354442062,2.76084634,3622.1,3621.8,0.1384]
[1753354442263,2.76091038,3622.0,3621.8,0.1384]
[1753354442578,2.76083592,3622.1,3621.8,0.1384]
[1753354442781,2.76093324,3622.0,3621.8,0.6121]
[1753354442963,2.76084833,3622.1,3621.8,0.6121]
[1753354443164,2.89908904,3622.3,3621.8,0.6121]
[1753354443364,2.76091294,3622.0,3621.8,0.6121]
[1753354443566,2.7609818,3621.9,3621.8,0.6121]
[1753354444100,2.76089753,3622.1,3621.8,0.1384]
[1753354444262,2.76089753,3622.1,3621.8,0.6121]
[1753354444459,2.76090714,3622.0,3621.8,0.6121]
[1753354444686,2.76085496,3622.1,3621.8,0.6121]
[1753354444899,0.002,3622.0,3621.8,0.6121]
[1753354445095,0.002,3622.0,3621.9,0.4737]
[1753354445598,2.76290557,3622.0,3621.9,0.4737]
[1753354447602,0.002,3622.0,3621.9,0.4737]
[1753354447903,2.76290557,3622.0,3621.9,0.4737]
[1753354448274,2.7609818,3621.9,3621.8,0.1384]
[1753354449304,2.76292387,3622.0,3621.8,0.1384]
[1753354449502,2.76292387,3622.0,3621.8,0.6121]
[1753354450599,0.002,3622.0,3621.8,0.6121]
[1753354451199,0.002,3622.0,3621.8,0.1384]
[1753354451419,0.002,3622.0,3621.9,0.4737]
[1753354452715,0.002,3622.0,3621.9,4.0522818]
[1753354453106,0.002,3622.0,3621.9,4.07989161]
[1753354454426,0.002,3622.0,3621.9,4.6022818]
[1753354455420,0.002,3622.0,3621.9,23.7255518]
[1753354456185,0.002,3622.0,3621.9,22.3682898]
[1753354456390,0.002,3622.0,3621.9,5.7703]
[1753354456913,0.002,3622.0,3621.9,5.7693]
[1753354457494,0.002,3622.0,3621.8,0.1384]
[1753354457703,0.002,3622.0,3621.9,4.478]
[1753354458540,2.76290557,3622.0,3621.9,4.478]
[1753354458824,0.002,3622.0,3621.9,4.478]
[1753354459027,0.002,3622.0,3621.9,4.9517]
[1753354463631,0.002,3622.0,3621.9,5.7315]
[1753354464327,2.76290557,3622.0,3621.9,4.478]
[1753354464505,0.002,3622.0,3621.9,4.478]
[1753354464702,0.002,3622.0,3621.9,4.9392]
[1753354465025,0.002,3622.0,3621.9,8.2501818]
[1753354465318,0.002,3622.0,3621.9,13.3199818]
[1753354465722,0.002,3622.0,3621.9,10.559]
[1753354466401,0.002,3622.0,3621.9,13.3199818]
[1753354466734,0.002,3622.0,3621.9,13.3209818]
[1753354467034,0.002,3622.0,3621.9,10.56]
[1753354467562,0.002,3622.0,3621.9,5.532]
[1753354467734,0.002,3622.0,3621.9,9.2242]
[1753354468098,2.76290557,3622.0,3621.9,8.763]
[1753354468298,0.002,3622.0,3621.9,8.763]
[1753354468806,0.002,3622.0,3621.9,9.2242]
[1753354469396,0.002,3622.0,3621.9,11.9851818]
[1753354469626,0.002,3622.0,3621.9,13.2882818]
[1753354471427,0.002,3622.0,3621.9,9.9753]
[1753354471758,0.002,3622.0,3621.9,8.761]
[1753354473020,0.002,3622.0,3621.9,9.2222]
[1753354473807,2.76290557,3622.0,3621.9,9.2222]
[1753354474008,2.76290557,3622.0,3621.9,8.761]
[1753354474447,0.002,3622.0,3621.9,8.761]
[1753354474615,2.76290557,3622.0,3621.9,8.761]
[1753354474943,0.002,3622.0,3621.9,8.761]
[1753354475112,0.002,3622.0,3621.9,4.291]
[1753354475313,0.002,3622.0,3621.9,8.759]
[1753354476548,2.76290557,3622.0,3621.9,8.759]
[1753354476741,0.002,3622.0,3621.9,8.758]
[1753354476943,0.002,3622.0,3621.9,4.291]
[1753354477150,0.002,3622.0,3621.9,4.468]
[1753354477447,2.76290557,3622.0,3621.9,0.001]
[1753354477869,2.76290557,3622.0,3621.9,4.467]
[1753354478681,2.76290557,3622.0,3621.9,0.001]
[1753354478887,2.76290557,3622.0,3621.9,4.467]
[1753354480787,2.76290557,3622.0,3621.9,0.001]
[1753354480938,3.88184161,3622.0,3621.9,0.001]
[1753354481143,3.88184161,3622.0,3621.9,4.466]
[1753354481373,3.55720557,3622.0,3621.9,4.466]
[1753354481879,3.58504161,3622.0,3621.9,0.001]
[1753354482079,3.88184161,3622.0,3621.9,0.001]
[1753354483872,3.88184161,3622.0,3621.9,1e-08]
[1753354484368,3.85400557,3622.0,3621.9,1e-08]
[1753354486601,8.31600557,3622.0,3621.9,1e-08]
[1753354487704,11.31600557,3622.0,3621.9,1e-08]
[1753354487910,11.31500557,3622.0,3621.9,1e-08]
[1753354490716,6.85400557,3622.0,3621.9,1e-08]
[1753354490891,11.31400557,3622.0,3621.9,1e-08]
[1753354491292,16.14390076,3622.0,3621.9,1e-08]
[1753354492384,11.68390076,3622.0,3621.9,1e-08]
[1753354494222,11.98070076,3622.0,3621.9,1e-08]
[1753354496813,12.11910076,3622.0,3621.9,1e-08]
[1753354497490,8.69888194,3621.5,3621.4,0.001]
[1753354497686,13.29328194,3621.5,3621.4,0.001]
[1753354497926,13.59008194,3621.5,3621.4,0.001]
[1753354500334,16.59008194,3621.5,3621.4,0.001]
[1753354501390,2.89968675,3621.5,3621.4,0.001]
[1753354501593,2.89968675,3621.5,3621.4,0.4604]
[1753354502031,2.76115496,3621.7,3621.4,0.5988]
[1753354502212,9.72109519,3622.0,3621.5,0.4594]
[1753354502390,2.76121051,3621.6,3621.5,0.4594]
[1753354502998,2.76115713,3621.7,3621.5,0.4594]
[1753354503321,2.76121051,3621.6,3621.5,0.4594]
[1753354504592,2.76116744,3621.7,3621.5,0.4594]
[1753354504794,2.76116744,3621.7,3621.4,0.1394]
[1753354505015,2.76116744,3621.7,3621.6,0.4594]
[1753354508154,2.76128675,3621.5,3621.4,0.5988]
[1753354508477,2.76128675,3621.5,3621.4,0.1394]
[1753354509063,2.76128675,3621.5,3621.4,0.5988]
[1753354509779,8.02806318,3622.0,3621.4,0.5988]
[1753354509980,5.26709519,3622.0,3621.5,0.4594]
[1753354510655,2.76120205,3621.7,3621.5,0.4594]
[1753354510857,2.76121051,3621.6,3621.5,0.4594]
[1753354511163,2.7609818,3621.9,3621.5,0.4594]
[1753354511493,2.76118273,3621.7,3621.6,0.4594]
[1753354511704,2.76121498,3621.6,3621.4,0.1394]
[1753354511855,0.1404,3622.0,3621.5,0.8285]
[1753354512059,0.002,3622.0,3621.8,0.1384]
[1753354512364,0.002,3622.0,3621.9,0.4594]
[1753354512569,0.002,3622.0,3621.9,1.2879]
[1753354513955,0.002,3622.0,3621.9,4.0488818]
[1753354514888,0.002,3622.0,3621.9,1.2879]
[1753354515790,0.002,3622.0,3621.9,0.8285]
[1753354515956,5.12869519,3622.0,3621.9,1.2879]
[1753354516353,0.002,3622.0,3621.9,1.2879]
[1753354517399,0.002,3622.0,3621.9,5.7319]
[1753354517711,0.002,3622.0,3621.9,8.4928818]
[1753354519992,0.002,3622.0,3621.9,5.7319]
[1753354520294,0.002,3622.0,3621.9,8.4928818]
[1753354521068,0.002,3622.0,3621.9,8.69528435]
[1753354526411,0.002,3622.0,3621.9,11.69528435]
[1753354526786,0.002,3622.0,3621.9,8.93430255]
[1753354526984,0.002,3622.0,3621.9,8.92830255]
[1753354527392,0.002,3622.0,3621.9,5.92830255]
[1753354527593,0.002,3622.0,3621.9,1.49030255]
[1753354527798,0.002,3622.0,3621.9,5.09880255]
[1753354531302,0.002,3622.0,3621.9,4.63940255]
[1753354531516,8.66590076,3622.0,3621.9,0.20240255]
[1753354531832,8.66590076,3622.0,3621.9,4.435]
[1753354531988,5.90499519,3622.0,3621.9,4.435]
[1753354532335,0.002,3622.0,3621.9,4.435]
[1753354532683,0.002,3622.0,3621.9,4.64138096]
[1753354533294,0.002,3622.0,3621.9,5.09348096]
[1753354535589,2.76290557,3622.0,3621.9,5.09348096]
[1753354535790,2.76290557,3622.0,3621.9,0.20738096]
[1753354535990,2.76290557,3622.0,3621.9,4.64038096]
[1753354536328,0.002,3622.0,3621.9,4.64038096]
[1753354536751,2.76290557,3622.0,3621.9,0.20738096]
[1753354536898,2.76290557,3622.0,3621.9,4.63938096]
[1753354538026,0.002,3622.0,3621.9,4.63938096]
[1753354538230,0.002,3622.0,3621.9,5.09048096]
[1753354539421,2.76290557,3622.0,3621.9,5.09048096]
[1753354539609,0.002,3622.0,3621.9,5.09048096]
[1753354540036,2.76290557,3622.0,3621.9,5.09048096]
[1753354540244,0.002,3622.0,3621.9,5.09048096]
[1753354542216,0.002,3622.0,3621.9,5.0110988]
[1753354542415,0.002,3622.0,3621.9,5.8107988]
[1753354542630,0.002,3622.0,3621.9,11.5717806]
[1753354542824,0.002,3622.0,3621.9,20.2425056]
[1753354543043,0.002,3622.0,3621.9,16.3327806]
[1753354543739,0.002,3622.0,3621.9,31.4772546]
[1753354543937,0.002,3622.0,3621.9,32.0272546]
[1753354544741,0.002,3622.0,3621.9,12.1217806]
[1753354544939,0.002,3622.0,3621.9,42.1217806]
[1753354545115,1e-08,3622.0,3621.9,48.0697806]
[1753354545319,0.002,3622.8,3622.7,28.88593609]
[1753354545513,0.002,3622.8,3622.7,31.50608709]
[1753354545935,0.002,3622.8,3622.7,20.15053609]
[1753354546109,0.002,3622.8,3622.7,17.80587209]
[1753354546960,0.002,3622.8,3622.7,15.29287209]
[1753354547257,0.002,3622.8,3622.7,19.58287209]
[1753354547815,0.002,3622.8,3622.7,16.30187209]
[1753354548036,0.002,3622.8,3622.7,40.74702309]
[1753354548237,0.002,3622.8,3622.7,40.88542309]
[1753354548652,0.002,3622.8,3622.7,36.24729809]
[1753354548850,0.002,3622.8,3622.7,16.44027209]
[1753354549060,0.002,3622.8,3622.7,35.55671309]
[1753354549465,0.002,3622.8,3622.7,30.56578509]
[1753354550032,0.002,3622.8,3622.7,35.34209809]
[1753354550432,0.002,3622.8,3622.7,35.06719309]
[1753354551368,0.002,3622.8,3622.7,32.20719309]
[1753354551932,0.002,3622.8,3622.7,40.16190509]
[1753354552190,0.002,3622.8,3622.7,37.55854509]
[1753354552381,0.002,3622.8,3622.7,34.90725109]
[1753354553081,0.002,3622.8,3622.7,42.19812709]
[1753354554163,0.002,3622.8,3622.7,46.44027209]
[1753354554788,1e-08,3622.8,3622.7,42.15027209]
[1753354555083,0.002,3623.5,3623.3,36.15151799]
[1753354555232,0.002,3623.5,3623.3,40.27780399]
[1753354555438,0.002,3623.5,3623.3,40.84340399]
[1753354556134,0.002,3623.5,3623.3,42.09501499]
[1753354556733,0.002,3623.5,3623.3,35.72569299]
[1753354557047,0.002,3623.5,3623.4,2.75983882]
[1753354557233,0.002,3623.5,3623.4,35.80790782]
[1753354557443,0.002,3623.5,3623.4,31.64898382]
[1753354557669,0.002,3623.5,3623.4,36.06698382]
[1753354557871,0.002,3623.5,3623.4,22.88557882]
[1753354558077,0.002,3623.5,3623.4,23.23274982]
[1753354558381,0.002,3623.5,3623.4,18.01925582]
[1753354558982,0.002,3623.5,3623.4,13.60225582]
[1753354559142,0.002,3623.5,3623.4,21.99909382]
[1753354559892,0.002,3623.5,3623.4,12.03472482]
[1753354560057,0.002,3623.5,3623.4,11.97143882]
[1753354560880,0.002,3623.5,3623.4,16.92154982]
[1753354561082,0.002,3623.5,3623.4,12.50554982]
[1753354561385,0.002,3623.5,3623.4,10.60283882]
[1753354561942,0.002,3623.5,3623.4,21.17600582]
[1753354562254,0.002,3623.5,3623.4,19.73603182]
[1753354563542,0.002,3623.5,3623.4,10.17383882]
[1753354563964,0.002,3623.5,3623.4,10.60183882]
[1753354564651,0.002,3623.5,3623.4,3.0]
[1753354564861,0.002,3623.5,3623.3,2.89748337]
[1753354564862,2.75983882,3623.4,3623.3,0.1376]
[1753354565069,6.23583123,3623.4,3622.2,7.4419]
[1753354565237,0.7845,3623.0,3622.5,2.76050662]
[1753354565458,3.84144524,3623.0,3622.6,4.412]
[1753354565879,3.84144524,3623.0,3622.7,3.0]
[1753354566179,1.0813,3623.0,3622.8,4.412]
[1753354566540,3.84145171,3623.0,3622.8,4.412]
[1753354566778,2.76021971,3622.9,3622.2,7.4419]
[1753354567077,0.2968,3622.9,3622.4,3.0]
[1753354567283,5.91119519,3623.0,3622.5,4.412]
[1753354567578,0.2968,3622.8,3622.5,4.412]
[1753354568392,8.6713682,3623.0,3622.5,4.412]
[1753354568691,8.9681682,3623.0,3622.5,4.412]
[1753354569061,2.76023349,3622.9,3622.5,4.412]
[1753354569769,2.76036071,3622.8,3622.5,4.412]
[1753354570309,3.05716071,3622.8,3622.5,4.412]
[1753354570483,2.76024849,3622.9,3622.5,4.412]
[1753354570858,3.05704849,3622.9,3622.5,4.412]
[1753354571165,0.2968,3622.9,3622.5,4.412]
[1753354572397,2.76024348,3622.9,3622.5,4.412]
[1753354572998,2.76034996,3622.8,3622.5,4.412]
[1753354573203,2.76030734,3622.8,3622.5,4.412]
[1753354573361,2.76022635,3622.9,3622.5,4.412]
[1753354573902,2.75970753,3623.6,3622.5,4.412]
[1753354573903,2.75956493,3623.8,3623.0,3.9586]
[1753354574197,5.42349519,3624.0,3623.2,3.0]
[1753354574403,0.7762,3623.7,3623.3,4.408]
[1753354575317,2.76176266,3623.5,3622.6,1.2108]
[1753354575464,7.88674733,3623.2,3622.7,4.407]
[1753354575804,7.88674733,3623.2,3623.0,0.1384]
[1753354575961,2.76006734,3623.1,3623.0,0.1384]
[1753354576162,2.76006734,3623.1,3623.0,4.5454]
[1753354576384,2.76006734,3623.1,3623.0,0.1384]
[1753354576596,7.88668913,3623.2,3623.0,4.407]
[1753354576797,2.76013076,3623.1,3623.0,4.407]
[1753354577013,7.88670681,3623.2,3623.0,4.407]
[1753354577200,3.52234107,3623.3,3623.0,4.407]
[1753354577377,0.7624,3623.3,3623.0,4.407]
[1753354577577,0.7624,3623.3,3623.1,0.1384]
[1753354577778,0.002,3623.5,3623.1,3.1384]
[1753354578112,0.002,3623.5,3623.3,2.7599144]
[1753354578312,0.002,3623.5,3623.4,4.5436]
[1753354578513,0.002,3623.5,3623.4,4.5446]
[1753354582417,0.002,3623.5,3623.4,7.74583882]
[1753354584018,0.002,3623.5,3623.4,11.54023882]
[1753354584516,0.002,3623.5,3623.4,3.933]
[1753354584681,0.002,3623.5,3623.4,10.30043882]
[1753354584889,0.002,3623.5,3623.4,7.5406]
[1753354586598,0.002,3623.5,3623.4,7.982]
[1753354587323,0.002,3623.5,3623.4,10.74183882]
[1753354587526,0.002,3623.5,3623.4,7.982]
[1753354587729,0.002,3623.5,3623.4,8.19151166]
[1753354588327,0.002,3623.5,3623.4,8.19051166]
[1753354588901,2.76176266,3623.5,3623.4,0.34811166]
[1753354589214,8.65175785,3623.5,3623.4,4.61051166]
[1753354589723,8.94855785,3623.5,3623.4,4.60951166]
[1753354589923,9.08615785,3623.5,3623.4,4.60951166]
[1753354590420,9.08615785,3623.5,3623.4,4.4]
[1753354590825,9.08615785,3623.5,3623.4,0.001]
[1753354591122,9.08615785,3623.5,3623.4,4.4]
[1753354591300,8.78935785,3623.5,3623.4,4.4]
[1753354591892,3.52506266,3623.5,3623.4,4.4]
[1753354592821,3.52506266,3623.5,3623.4,4.61212308]
[1753354594314,3.82186266,3623.5,3623.4,4.61212308]
[1753354594690,3.52506266,3623.5,3623.4,4.61212308]
[1753354596030,3.52506266,3623.5,3623.4,4.4]
[1753354596928,3.52506266,3623.5,3623.4,4.60764405]
[1753354599218,0.002,3623.5,3623.4,4.60764405]
[1753354599419,0.002,3623.5,3623.4,4.74524405]
[1753354601033,2.76176266,3623.5,3623.4,4.74524405]
[1753354601424,0.002,3623.5,3623.4,4.74524405]
[1753354604323,0.04,3623.9,3623.4,16.49178125]
[1753354604546,0.04,3623.9,3623.8,4.12483419]
[1753354604754,0.04,3623.9,3623.8,8.54342953]
[1753354604959,0.04,3623.9,3623.8,11.95723419]
[1753354605465,0.04,3623.9,3623.8,38.40010238]
[1753354605666,0.04,3623.9,3623.8,33.27340719]
[1753354606164,0.004,3624.8,3624.7,29.692987]
[1753354606323,0.004,3624.8,3624.7,30.743118]
[1753354606530,0.004,3624.8,3624.7,25.626697]
[1753354606927,0.004,3624.8,3624.7,15.078951]
[1753354607154,0.004,3624.8,3624.7,15.930149]
[1753354607326,0.004,3624.8,3624.7,32.097603]
[1753354607948,0.004,3624.8,3624.7,36.387603]
[1753354608470,0.004,3624.8,3624.7,41.915149]
[1753354609057,0.004,3624.8,3624.7,36.116252]
[1753354609267,0.004,3624.8,3624.7,23.026975]
[1753354609420,0.004,3624.8,3624.7,22.518975]
[1753354609623,0.004,3624.8,3624.7,16.898836]
[1753354609864,0.004,3624.8,3624.7,14.823787]
[1753354610430,0.004,3624.8,3624.7,21.826073]
[1753354611075,0.004,3624.8,3624.7,17.005748]
[1753354611565,0.004,3624.8,3624.7,17.794367]
[1753354611938,0.004,3624.8,3624.7,19.195566]
[1753354612464,0.004,3624.8,3624.7,16.839964]
[1753354613329,0.004,3624.8,3624.7,46.205149]
[1753354613530,0.004,3624.8,3624.7,44.482501]
[1753354613940,0.004,3624.8,3624.7,43.031126]
[1753354614143,0.004,3624.8,3624.7,39.422126]
[1753354614371,0.004,3624.8,3624.7,41.732627]
[1753354614958,0.004,3624.8,3624.7,40.007783]
[1753354615133,0.004,3624.8,3624.7,39.308175]
[1753354615560,0.004,3624.8,3624.7,40.452142]
[1753354616161,0.004,3624.8,3623.7,0.781]
[1753354616162,0.8156,3624.7,3623.7,0.781]
[1753354616337,5.12669519,3624.1,3623.8,4.384]
[1753354616537,5.12669519,3624.5,3623.8,4.8379]
[1753354616779,7.88570118,3624.5,3623.8,4.8379]
[1753354617081,5.94229519,3624.7,3623.9,7.383]
[1753354617295,2.75898628,3624.6,3624.0,4.383]
[1753354617579,2.75900649,3624.5,3624.0,4.383]
[1753354617776,2.75900649,3624.5,3623.9,5.75943932]
[1753354617975,2.75900649,3624.5,3624.0,4.382]
[1753354618472,5.94229519,3624.7,3623.9,3.0]
[1753354618674,7.88591757,3624.3,3623.4,1.01594405]
[1753354618846,2.75929362,3624.2,3623.7,3.0]
[1753354619055,2.75930575,3624.1,3623.8,4.382]
[1753354619362,2.75945418,3624.0,3623.4,3.20864405]
[1753354619563,3.55350218,3624.0,3623.6,3.0]
[1753354619768,0.7941,3624.0,3623.8,3.0]
[1753354619981,0.7941,3624.0,3623.9,4.381]
[1753354620343,3.55348189,3624.0,3623.9,4.381]
[1753354621873,0.7606,3624.5,3623.9,4.381]
[1753354622078,2.75933945,3624.1,3623.9,4.381]
[1753354622280,2.75920343,3624.3,3623.9,4.381]
[1753354622451,2.75924021,3624.2,3623.9,4.381]
[1753354622655,2.75915349,3624.3,3623.9,4.381]
[1753354622890,2.75922962,3624.2,3623.9,4.381]
[1753354623055,2.75917851,3624.3,3623.9,4.381]
[1753354623253,0.004,3624.8,3624.0,0.4539]
[1753354623254,0.002,3624.2,3624.0,0.4539]
[1753354623470,0.002,3624.2,3624.1,4.8349]
[1753354623645,0.002,3624.2,3624.1,4.381]
[1753354624066,2.76122962,3624.2,3624.1,4.381]
[1753354624271,2.76122962,3624.2,3624.1,4.38]
[1753354624459,0.002,3624.2,3624.1,4.38]
[1753354624657,0.002,3624.2,3624.1,4.8339]
[1753354624860,0.002,3624.2,3624.1,4.38]
[1753354625781,0.002,3624.2,3624.1,7.59320575]
[1753354626077,0.002,3624.2,3624.1,4.8339]
[1753354626243,0.002,3624.2,3624.1,4.9715]
[1753354630099,0.002,3624.2,3624.1,0.1376]
[1753354630261,0.002,3624.2,3624.1,4.5156]
[1753354630448,0.002,3624.2,3624.1,7.72880575]
[1753354630981,0.002,3624.2,3624.1,10.72880575]
[1753354631189,0.002,3624.2,3624.1,11.27880575]
[1753354633082,0.002,3624.2,3624.1,31.17415875]
[1753354633507,2.75841591,3625.3,3624.1,31.17415875]
[1753354633508,0.04,3625.9,3625.3,0.7691]
[1753354633667,0.04,3625.9,3625.6,5.75814726]
[1753354633864,0.04,3625.9,3625.8,3.1376]
[1753354634171,0.04,3625.9,3625.8,10.27161202]
[1753354634372,0.04,3625.9,3625.8,11.47913417]
[1753354634571,0.04,3625.9,3625.8,38.23517817]
[1753354634773,0.04,3625.9,3625.8,39.04587817]
[1753354634988,0.04,3625.9,3625.8,21.29371217]
[1753354635189,0.04,3625.9,3625.8,18.34568517]
[1753354635489,0.04,3625.9,3625.8,12.49431817]
[1753354635696,0.04,3625.9,3625.8,14.86820817]
[1753354636676,0.04,3625.9,3625.8,19.66852317]
[1753354637208,0.04,3625.9,3625.8,7.66503015]
[1753354637357,0.04,3625.9,3625.8,7.71522215]
[1753354637559,0.04,3625.9,3625.8,10.47323417]
[1753354637758,0.04,3625.9,3625.8,3.34122215]
[1753354638453,0.04,3625.9,3625.8,7.71422215]
[1753354638777,0.04,3625.9,3625.8,4.71422215]
[1753354638954,3.09473596,3625.9,3625.8,4.57662215]
[1753354639360,3.09473596,3625.9,3625.8,0.20362215]
[1753354639361,3.89743596,3625.9,3625.8,0.20362215]
[1753354639685,3.89743596,3625.9,3625.8,4.373]
[1753354640087,2.75816416,3625.6,3625.5,0.1376]
[1753354640296,2.75816416,3625.6,3625.5,4.5096]
[1753354640605,2.75810893,3625.7,3625.5,4.5096]
[1753354640807,2.75816416,3625.6,3625.5,4.5096]
[1753354641803,2.7581058,3625.7,3625.5,4.5096]
[1753354641966,2.75816416,3625.6,3625.5,4.5096]
[1753354642168,2.75811317,3625.7,3625.5,4.71651181]
[1753354642373,0.8427,3625.9,3625.5,4.71651181]